[Event "*** Titled Tuesday Blitz"]
[Site "Chess.com"]
[Date "2020.05.19"]
[Round "10"]
[White "LuckSlayeer"]
[Black "GelmanAlexander"]
[Result "1-0"]
[WhiteElo "2462"]
[BlackElo "2567"]
[TimeControl "180+1"]
[EndTime "13:57:01 PDT"]
[Termination "LuckSlayeer won on time"]

1. Nf3 {[%clk 0:03:00.2]} 1... c5 {[%clk 0:02:59.8]} 2. c4 {[%clk 0:03:00.1]}
2... e6 {[%clk 0:02:59.8]} 3. Nc3 {[%clk 0:03:00.7]} 3... Nf6 {[%clk 0:02:59.7]}
4. e3 {[%clk 0:03:00.4]} 4... b6 {[%clk 0:02:54.4]} 5. d4 {[%clk 0:02:59.8]}
5... Bb7 {[%clk 0:02:54.8]} 6. d5 {[%clk 0:02:54.6]} 6... exd5 {[%clk 0:02:49]}
7. cxd5 {[%clk 0:02:55.5]} 7... a6 {[%clk 0:02:45.4]} 8. a4 {[%clk 0:02:51.1]}
8... d6 {[%clk 0:02:44.6]} 9. e4 {[%clk 0:02:50.9]} 9... Nbd7 {[%clk 0:02:42.7]}
10. Bd3 {[%clk 0:02:49.4]} 10... g6 {[%clk 0:02:42.9]} 11. O-O {[%clk
0:02:48.8]} 11... Bg7 {[%clk 0:02:42.6]} 12. Nd2 {[%clk 0:02:45.7]} 12... Ne5
{[%clk 0:02:36.4]} 13. Be2 {[%clk 0:02:45.9]} 13... g5 {[%clk 0:02:07.8]} 14.
Nc4 {[%clk 0:02:25.9]} 14... Nxc4 {[%clk 0:02:07.5]} 15. Bxc4 {[%clk 0:02:26.8]}
15... Nd7 {[%clk 0:02:06.7]} 16. f4 {[%clk 0:02:11.8]} 16... gxf4 {[%clk
0:01:56.3]} 17. Bxf4 {[%clk 0:02:12.7]} 17... Ne5 {[%clk 0:01:56.4]} 18. Be2
{[%clk 0:02:08.9]} 18... Qe7 {[%clk 0:01:54.7]} 19. Rb1 {[%clk 0:02:01.6]} 19...
O-O {[%clk 0:01:53.1]} 20. Kh1 {[%clk 0:01:54.8]} 20... f5 {[%clk 0:01:45.5]}
21. b4 {[%clk 0:01:35.4]} 21... Rac8 {[%clk 0:01:29.6]} 22. bxc5 {[%clk
0:01:29.5]} 22... Rxc5 {[%clk 0:01:30.2]} 23. Na2 {[%clk 0:01:20.3]} 23... fxe4
{[%clk 0:01:22.9]} 24. Rxb6 {[%clk 0:01:19.4]} 24... Bxd5 {[%clk 0:01:16.6]} 25.
Nb4 {[%clk 0:01:18.9]} 25... Ba8 {[%clk 0:01:11.5]} 26. Rxd6 {[%clk 0:01:10.2]}
26... a5 {[%clk 0:01:05.2]} 27. Na6 {[%clk 0:01:03.1]} 27... Rcc8 {[%clk
0:00:50.4]} 28. Rd2 {[%clk 0:00:41.4]} 28... Kh8 {[%clk 0:00:41]} 29. Be3 {[%clk
0:00:39.5]} 29... Rxf1+ {[%clk 0:00:35.4]} 30. Qxf1 {[%clk 0:00:39.6]} 30... Rf8
{[%clk 0:00:26.3]} 31. Qg1 {[%clk 0:00:35.7]} 31... Nf3 {[%clk 0:00:24.5]} 32.
Bc5 {[%clk 0:00:21.1]} 32... Qh4 {[%clk 0:00:21.1]} 33. Bxf3 {[%clk 0:00:08.7]}
33... exf3 {[%clk 0:00:20.5]} 34. Bxf8 {[%clk 0:00:08.9]} 34... fxg2+ {[%clk
0:00:18]} 35. Rxg2 {[%clk 0:00:09]} 35... Bxf8 {[%clk 0:00:16.8]} 36. Nc7 {[%clk
0:00:09.3]} 36... Be4 {[%clk 0:00:14]} 37. Qa1+ {[%clk 0:00:08.5]} 1-0

[Event "*** Titled Tuesday Blitz"]
[Site "Chess.com"]
[Date "2020.05.19"]
[Round "10"]
[White "Baby_Legs"]
[Black "GMBenjaminFinegold"]
[Result "1-0"]
[WhiteElo "2713"]
[BlackElo "2551"]
[TimeControl "180+1"]
[EndTime "13:57:03 PDT"]
[Termination "Baby_Legs won on time"]

1. Nf3 {[%clk 0:03:00.9]} 1... Nf6 {[%clk 0:02:54.1]} 2. e3 {[%clk 0:03:00.7]}
2... d5 {[%clk 0:02:52.3]} 3. c4 {[%clk 0:03:00.4]} 3... c6 {[%clk 0:02:52.4]}
4. Nc3 {[%clk 0:02:59.8]} 4... g6 {[%clk 0:02:52.3]} 5. d4 {[%clk 0:02:59]} 5...
Bg7 {[%clk 0:02:52.6]} 6. Be2 {[%clk 0:02:59.2]} 6... O-O {[%clk 0:02:52.3]} 7.
O-O {[%clk 0:02:58.9]} 7... dxc4 {[%clk 0:02:52.9]} 8. Bxc4 {[%clk 0:02:59.4]}
8... Bg4 {[%clk 0:02:53.4]} 9. Be2 {[%clk 0:02:59.9]} 9... Nbd7 {[%clk
0:02:52.8]} 10. h3 {[%clk 0:03:00]} 10... Bxf3 {[%clk 0:02:53.2]} 11. Bxf3
{[%clk 0:03:00.9]} 11... e5 {[%clk 0:02:53.7]} 12. dxe5 {[%clk 0:03:01.4]} 12...
Nxe5 {[%clk 0:02:53.6]} 13. Be2 {[%clk 0:03:02]} 13... Qb6 {[%clk 0:02:50.3]}
14. Qc2 {[%clk 0:03:01.6]} 14... Rad8 {[%clk 0:02:48.9]} 15. e4 {[%clk
0:02:54.9]} 15... Rfe8 {[%clk 0:02:37.2]} 16. Be3 {[%clk 0:02:52.1]} 16... Qb4
{[%clk 0:02:32.3]} 17. a3 {[%clk 0:02:44.7]} 17... Qa5 {[%clk 0:02:26.3]} 18. b4
{[%clk 0:02:19.7]} 18... Qc7 {[%clk 0:02:23.2]} 19. f4 {[%clk 0:02:17.4]} 19...
Ned7 {[%clk 0:02:10.2]} 20. Rad1 {[%clk 0:02:08.7]} 20... Nb6 {[%clk 0:01:54.7]}
21. Kh1 {[%clk 0:01:44.7]} 21... Nbd5 {[%clk 0:01:27.6]} 22. Nxd5 {[%clk
0:01:24.5]} 22... Nxd5 {[%clk 0:01:27]} 23. Bd2 {[%clk 0:01:11.8]} 23... Qb6
{[%clk 0:01:15]} 24. Rf3 {[%clk 0:01:04.8]} 24... Nf6 {[%clk 0:00:58.9]} 25. e5
{[%clk 0:00:55.9]} 25... Nd5 {[%clk 0:00:59.2]} 26. Bc1 {[%clk 0:00:45.8]} 26...
a5 {[%clk 0:00:56.2]} 27. bxa5 {[%clk 0:00:42.8]} 27... Qxa5 {[%clk 0:00:55.3]}
28. Qb3 {[%clk 0:00:43.2]} 28... b5 {[%clk 0:00:51.2]} 29. Rfd3 {[%clk
0:00:43.3]} 29... Rc8 {[%clk 0:00:45.7]} 30. Bf3 {[%clk 0:00:43]} 30... Bf8
{[%clk 0:00:40.1]} 31. Bxd5 {[%clk 0:00:24.4]} 31... cxd5 {[%clk 0:00:41]} 32.
Qxd5 {[%clk 0:00:24.8]} 32... Qa4 {[%clk 0:00:33.7]} 33. Bb2 {[%clk 0:00:23.3]}
33... Re6 {[%clk 0:00:32.2]} 34. f5 {[%clk 0:00:22.5]} 34... gxf5 {[%clk
0:00:31.2]} 35. Rg3+ {[%clk 0:00:20.4]} 35... Kh8 {[%clk 0:00:18]} 36. Kh2
{[%clk 0:00:19.1]} 36... Qf4 {[%clk 0:00:17.6]} 37. Qd7 {[%clk 0:00:17.7]} 37...
Rg6 {[%clk 0:00:08.2]} 38. e6+ {[%clk 0:00:14.4]} 38... f6 {[%clk 0:00:08.1]}
39. Bxf6+ {[%clk 0:00:13.6]} 39... Rxf6 {[%clk 0:00:07.4]} 40. Qxc8 {[%clk
0:00:13.3]} 40... h5 {[%clk 0:00:06.2]} 41. e7 {[%clk 0:00:13.5]} 1-0

[Event "*** Titled Tuesday Blitz"]
[Site "Chess.com"]
[Date "2020.05.19"]
[Round "10"]
[White "Perecke"]
[Black "IngOscarArdila"]
[Result "0-1"]
[WhiteElo "2246"]
[BlackElo "2074"]
[TimeControl "180+1"]
[EndTime "13:57:03 PDT"]
[Termination "IngOscarArdila won on time"]

1. e4 {[%clk 0:03:00.9]} 1... e5 {[%clk 0:02:58.6]} 2. Nf3 {[%clk 0:02:55.8]}
2... Nf6 {[%clk 0:02:58.1]} 3. Nxe5 {[%clk 0:02:55.5]} 3... d6 {[%clk
0:02:57.9]} 4. Nf3 {[%clk 0:02:54.5]} 4... Nxe4 {[%clk 0:02:58.4]} 5. Nc3 {[%clk
0:02:53.8]} 5... Nf6 {[%clk 0:02:58.5]} 6. d4 {[%clk 0:02:52.4]} 6... Be7 {[%clk
0:02:58.9]} 7. Bf4 {[%clk 0:02:51]} 7... O-O {[%clk 0:02:59.3]} 8. Qd2 {[%clk
0:02:50.5]} 8... Nbd7 {[%clk 0:02:59.5]} 9. O-O-O {[%clk 0:02:50.2]} 9... Re8
{[%clk 0:02:59.9]} 10. Bd3 {[%clk 0:02:50.4]} 10... Nb6 {[%clk 0:02:59.3]} 11.
h3 {[%clk 0:02:48.8]} 11... Nbd5 {[%clk 0:02:59.1]} 12. Nxd5 {[%clk 0:02:48.6]}
12... Nxd5 {[%clk 0:02:59.6]} 13. Bh2 {[%clk 0:02:48.1]} 13... Bd7 {[%clk
0:02:40.7]} 14. Kb1 {[%clk 0:02:45.9]} 14... Nf6 {[%clk 0:02:21.3]} 15. Ng5
{[%clk 0:02:04.4]} 15... h6 {[%clk 0:02:14]} 16. Ne4 {[%clk 0:02:00.2]} 16...
Bc6 {[%clk 0:02:11.3]} 17. Nxf6+ {[%clk 0:01:27.6]} 17... Bxf6 {[%clk
0:02:11.2]} 18. c3 {[%clk 0:01:27.4]} 18... Be4 {[%clk 0:02:09.2]} 19. Rhe1
{[%clk 0:01:20.1]} 19... Bxd3+ {[%clk 0:01:45.3]} 20. Qxd3 {[%clk 0:01:21]}
20... Qd7 {[%clk 0:01:45.1]} 21. g4 {[%clk 0:01:18.6]} 21... Rxe1 {[%clk
0:01:42.2]} 22. Rxe1 {[%clk 0:01:19.5]} 22... Re8 {[%clk 0:01:42.1]} 23. Re3
{[%clk 0:01:15]} 23... Rxe3 {[%clk 0:01:35.6]} 24. fxe3 {[%clk 0:01:15.9]} 24...
h5 {[%clk 0:01:29]} 25. Qe4 {[%clk 0:01:01.8]} 25... hxg4 {[%clk 0:01:24.4]} 26.
hxg4 {[%clk 0:00:58.7]} 26... d5 {[%clk 0:01:22.7]} 27. Qf4 {[%clk 0:00:55.8]}
27... c6 {[%clk 0:01:05.2]} 28. g5 {[%clk 0:00:48.8]} 28... Be7 {[%clk
0:01:03.8]} 29. a3 {[%clk 0:00:33]} 29... a6 {[%clk 0:00:54.4]} 30. Qb8+ {[%clk
0:00:27.5]} 30... Kh7 {[%clk 0:00:53.9]} 31. Bf4 {[%clk 0:00:26.6]} 31... Kg6
{[%clk 0:00:52.1]} 32. Ka2 {[%clk 0:00:11.6]} 32... Bxg5 {[%clk 0:00:50.3]} 33.
Bc7 {[%clk 0:00:07.4]} 33... b5 {[%clk 0:00:45.3]} 34. Qb6 {[%clk 0:00:06.7]}
34... Bxe3 {[%clk 0:00:43]} 35. Be5 {[%clk 0:00:06.1]} 35... f6 {[%clk
0:00:41.9]} 36. Bb8 {[%clk 0:00:05.7]} 36... Qc8 {[%clk 0:00:39.3]} 37. Bc7
{[%clk 0:00:04.8]} 37... Bg5 {[%clk 0:00:38.2]} 38. Qxc6 {[%clk 0:00:04.4]}
38... Bc1 {[%clk 0:00:34]} 39. Qc5 {[%clk 0:00:03.4]} 39... Qe6 {[%clk
0:00:32.6]} 40. Bd6 {[%clk 0:00:03]} 40... Qe2 {[%clk 0:00:31.2]} 41. Qb4 {[%clk
0:00:02.1]} 41... Qc4+ {[%clk 0:00:30.9]} 42. Qxc4 {[%clk 0:00:02]} 42... dxc4
{[%clk 0:00:31.1]} 43. b3 {[%clk 0:00:01.8]} 43... Kf5 {[%clk 0:00:29.9]} 44.
bxc4 {[%clk 0:00:01.6]} 44... bxc4 {[%clk 0:00:30.2]} 45. Kb1 {[%clk 0:00:02.2]}
45... Be3 {[%clk 0:00:29.2]} 46. Kc2 {[%clk 0:00:02]} 46... Ke4 {[%clk
0:00:29.5]} 0-1

[Event "*** Titled Tuesday Blitz"]
[Site "Chess.com"]
[Date "2020.05.19"]
[Round "10"]
[White "manitodeplomo"]
[Black "kasparicy"]
[Result "1-0"]
[WhiteElo "2589"]
[BlackElo "2416"]
[TimeControl "180+1"]
[EndTime "13:57:04 PDT"]
[Termination "manitodeplomo won by resignation"]

1. Nf3 {[%clk 0:02:53.2]} 1... f5 {[%clk 0:02:57.2]} 2. g3 {[%clk 0:02:52.5]}
2... Nf6 {[%clk 0:02:56.7]} 3. Bg2 {[%clk 0:02:53]} 3... d6 {[%clk 0:02:57.1]}
4. O-O {[%clk 0:02:52.4]} 4... e5 {[%clk 0:02:57.3]} 5. c4 {[%clk 0:02:50.9]}
5... Nc6 {[%clk 0:02:57.1]} 6. Nc3 {[%clk 0:02:51.3]} 6... Be7 {[%clk
0:02:57.4]} 7. Rb1 {[%clk 0:02:50.5]} 7... a5 {[%clk 0:02:52.7]} 8. a3 {[%clk
0:02:49.9]} 8... O-O {[%clk 0:02:53.2]} 9. b4 {[%clk 0:02:49.8]} 9... axb4
{[%clk 0:02:52.9]} 10. axb4 {[%clk 0:02:50.7]} 10... Qe8 {[%clk 0:02:51.9]} 11.
b5 {[%clk 0:02:49.9]} 11... Nd8 {[%clk 0:02:51.6]} 12. d3 {[%clk 0:02:45.9]}
12... Be6 {[%clk 0:02:50.3]} 13. Ng5 {[%clk 0:02:41.8]} 13... Rb8 {[%clk
0:02:36.4]} 14. Nxe6 {[%clk 0:02:40.2]} 14... Nxe6 {[%clk 0:02:37.3]} 15. Nd5
{[%clk 0:02:37.7]} 15... Kh8 {[%clk 0:02:33.1]} 16. f4 {[%clk 0:02:25.3]} 16...
Bd8 {[%clk 0:02:26.7]} 17. fxe5 {[%clk 0:02:23.4]} 17... dxe5 {[%clk 0:02:24.4]}
18. Ba3 {[%clk 0:02:23]} 18... Rf7 {[%clk 0:01:52]} 19. Rxf5 {[%clk 0:01:44.1]}
19... Nxd5 {[%clk 0:01:46.6]} 20. Rxf7 {[%clk 0:01:44.4]} 20... Ne3 {[%clk
0:01:44.5]} 21. Qd2 {[%clk 0:01:42.1]} 21... Nxc4 {[%clk 0:01:40.2]} 22. dxc4
{[%clk 0:01:32.4]} 22... Qxf7 {[%clk 0:01:40.1]} 23. Rf1 {[%clk 0:01:32.3]}
23... Bf6 {[%clk 0:01:36.2]} 24. Qd5 {[%clk 0:01:25.1]} 24... Qe8 {[%clk
0:01:25.3]} 25. Bb2 {[%clk 0:01:04.4]} 25... Nd4 {[%clk 0:01:23.5]} 26. e3
{[%clk 0:00:59.9]} 26... c6 {[%clk 0:01:19.9]} 27. Qe4 {[%clk 0:00:58.7]} 27...
Nb3 {[%clk 0:00:51]} 28. Qc2 {[%clk 0:00:33.3]} 28... Nc5 {[%clk 0:00:46.5]} 29.
Ba3 {[%clk 0:00:32.8]} 29... Ne6 {[%clk 0:00:37.4]} 30. Qf5 {[%clk 0:00:28.9]}
30... cxb5 {[%clk 0:00:33.7]} 31. cxb5 {[%clk 0:00:28.4]} 31... Nf8 {[%clk
0:00:17]} 32. b6 {[%clk 0:00:21.7]} 32... Ng6 {[%clk 0:00:16.4]} 33. h4 {[%clk
0:00:20.5]} 33... Ra8 {[%clk 0:00:15.4]} 34. Bd6 {[%clk 0:00:18.9]} 34... Rd8
{[%clk 0:00:14.7]} 35. Bc7 {[%clk 0:00:18.7]} 35... Rd2 {[%clk 0:00:14.5]} 36.
h5 {[%clk 0:00:18.5]} 36... Ne7 {[%clk 0:00:14.5]} 37. Qe4 {[%clk 0:00:17.3]}
37... Qxh5 {[%clk 0:00:12.8]} 38. Qxb7 {[%clk 0:00:17.2]} 38... h6 {[%clk
0:00:13.3]} 39. Qa8+ {[%clk 0:00:16.3]} 39... Kh7 {[%clk 0:00:13.2]} 40. Qe4+
{[%clk 0:00:15.7]} 40... Ng6 {[%clk 0:00:13.2]} 41. b7 {[%clk 0:00:15.7]} 1-0

[Event "*** Titled Tuesday Blitz"]
[Site "Chess.com"]
[Date "2020.05.19"]
[Round "10"]
[White "talaicito"]
[Black "S_Kalvaitis"]
[Result "0-1"]
[WhiteElo "2164"]
[BlackElo "2334"]
[TimeControl "180+1"]
[EndTime "13:57:06 PDT"]
[Termination "S_Kalvaitis won on time"]

1. d4 {[%clk 0:03:00.9]} 1... d5 {[%clk 0:02:59.8]} 2. Nc3 {[%clk 0:03:00.3]}
2... Nc6 {[%clk 0:02:55.1]} 3. Bf4 {[%clk 0:02:59.7]} 3... Nf6 {[%clk
0:02:54.9]} 4. e3 {[%clk 0:02:58.2]} 4... a6 {[%clk 0:02:54.1]} 5. Nf3 {[%clk
0:02:57.1]} 5... Bg4 {[%clk 0:02:53.9]} 6. Qd2 {[%clk 0:02:56]} 6... e6 {[%clk
0:02:50.6]} 7. Ne5 {[%clk 0:02:48.4]} 7... Nxe5 {[%clk 0:02:48.9]} 8. dxe5
{[%clk 0:02:47.5]} 8... Nd7 {[%clk 0:02:47.6]} 9. h3 {[%clk 0:02:46.9]} 9... Bf5
{[%clk 0:02:47.2]} 10. g4 {[%clk 0:02:46.6]} 10... Bg6 {[%clk 0:02:47.5]} 11. h4
{[%clk 0:02:46.8]} 11... h6 {[%clk 0:02:41.2]} 12. h5 {[%clk 0:02:46.5]} 12...
Bh7 {[%clk 0:02:41.5]} 13. Bd3 {[%clk 0:02:46.7]} 13... Bxd3 {[%clk 0:02:41.7]}
14. Qxd3 {[%clk 0:02:46]} 14... Nc5 {[%clk 0:02:42.1]} 15. Qe2 {[%clk
0:02:39.2]} 15... Be7 {[%clk 0:02:40.9]} 16. O-O-O {[%clk 0:02:36.6]} 16... c6
{[%clk 0:02:39.4]} 17. e4 {[%clk 0:02:30.2]} 17... Qa5 {[%clk 0:02:34]} 18. exd5
{[%clk 0:02:04.4]} 18... cxd5 {[%clk 0:02:34.9]} 19. Be3 {[%clk 0:02:03.7]}
19... O-O-O {[%clk 0:02:28.8]} 20. f4 {[%clk 0:01:52.5]} 20... Kb8 {[%clk
0:02:20.9]} 21. Rd4 {[%clk 0:01:30.9]} 21... Rc8 {[%clk 0:02:13.2]} 22. Kb1
{[%clk 0:01:20.5]} 22... Qc7 {[%clk 0:02:07.4]} 23. f5 {[%clk 0:01:09.2]} 23...
Rhd8 {[%clk 0:02:02.3]} 24. Rhd1 {[%clk 0:00:59.3]} 24... Ka8 {[%clk 0:01:57.4]}
25. Bf4 {[%clk 0:00:58.9]} 25... Qc6 {[%clk 0:01:53.1]} 26. a3 {[%clk
0:00:52.7]} 26... b5 {[%clk 0:01:47.7]} 27. Qf1 {[%clk 0:00:34.8]} 27... Nb7
{[%clk 0:01:38.4]} 28. R4d2 {[%clk 0:00:28.4]} 28... Na5 {[%clk 0:01:36.4]} 29.
Ne2 {[%clk 0:00:25.4]} 29... Nc4 {[%clk 0:01:32.1]} 30. Rd3 {[%clk 0:00:24.9]}
30... b4 {[%clk 0:01:27.5]} 31. Nd4 {[%clk 0:00:24.3]} 31... Qb6 {[%clk
0:01:25.9]} 32. Rb3 {[%clk 0:00:15.2]} 32... Na5 {[%clk 0:01:25.7]} 33. Rbd3
{[%clk 0:00:12]} 33... bxa3 {[%clk 0:01:23.3]} 34. b3 {[%clk 0:00:11.3]} 34...
Rc7 {[%clk 0:01:01.2]} 35. Qg2 {[%clk 0:00:11.1]} 35... Rdc8 {[%clk 0:00:58]}
36. fxe6 {[%clk 0:00:08.5]} 36... fxe6 {[%clk 0:00:58.9]} 37. Nxe6 {[%clk
0:00:08.9]} 37... Qxe6 {[%clk 0:00:57.6]} 38. Rxd5 {[%clk 0:00:08.6]} 38... Nb7
{[%clk 0:00:54.3]} 39. Rd6 {[%clk 0:00:07.8]} 39... Bxd6 {[%clk 0:00:52.3]} 40.
exd6 {[%clk 0:00:08.1]} 40... Rxc2 {[%clk 0:00:52.4]} 41. Qf3 {[%clk 0:00:03.1]}
41... Rb2+ {[%clk 0:00:49.3]} 42. Ka1 {[%clk 0:00:02.6]} 42... Qxb3 {[%clk
0:00:46.9]} 43. Qxb3 {[%clk 0:00:01.1]} 43... Rxb3 {[%clk 0:00:47.2]} 44. d7
{[%clk 0:00:02]} 44... Rd8 {[%clk 0:00:47.5]} 45. Bc7 {[%clk 0:00:02.1]} 45...
Rb4 {[%clk 0:00:30.2]} 46. Bxd8 {[%clk 0:00:02.5]} 46... Nxd8 {[%clk 0:00:31.1]}
47. Rc1 {[%clk 0:00:02.5]} 47... Kb7 {[%clk 0:00:30.5]} 48. Rc8 {[%clk
0:00:02.4]} 48... Nc6 {[%clk 0:00:24.3]} 0-1

[Event "*** Titled Tuesday Blitz"]
[Site "Chess.com"]
[Date "2020.05.19"]
[Round "10"]
[White "ketster"]
[Black "SerGo055"]
[Result "1/2-1/2"]
[WhiteElo "2398"]
[BlackElo "2572"]
[TimeControl "180+1"]
[EndTime "13:57:08 PDT"]
[Termination "Game drawn by repetition"]

1. d4 {[%clk 0:03:00.9]} 1... Nf6 {[%clk 0:02:59.4]} 2. c4 {[%clk 0:03:00.8]}
2... e6 {[%clk 0:02:59.5]} 3. Nc3 {[%clk 0:02:59.3]} 3... d5 {[%clk 0:02:59.2]}
4. cxd5 {[%clk 0:02:58.4]} 4... exd5 {[%clk 0:02:58.9]} 5. Bg5 {[%clk
0:02:57.4]} 5... c6 {[%clk 0:02:58.9]} 6. e3 {[%clk 0:02:57.1]} 6... Be7 {[%clk
0:02:57.6]} 7. Qc2 {[%clk 0:02:56.7]} 7... Nbd7 {[%clk 0:02:55.7]} 8. Bd3 {[%clk
0:02:55.5]} 8... Nh5 {[%clk 0:02:49.5]} 9. Bxe7 {[%clk 0:02:52.7]} 9... Qxe7
{[%clk 0:02:50.4]} 10. g4 {[%clk 0:02:46.8]} 10... Nhf6 {[%clk 0:02:48.4]} 11.
h3 {[%clk 0:02:46.2]} 11... Nb6 {[%clk 0:02:44.5]} 12. O-O-O {[%clk 0:02:42.2]}
12... Be6 {[%clk 0:02:43.5]} 13. Nf3 {[%clk 0:02:37.9]} 13... O-O-O {[%clk
0:02:42.3]} 14. Kb1 {[%clk 0:02:34]} 14... Kb8 {[%clk 0:02:41.8]} 15. Rc1 {[%clk
0:02:29]} 15... g6 {[%clk 0:02:28.4]} 16. Na4 {[%clk 0:02:19.3]} 16... Nxa4
{[%clk 0:02:24.9]} 17. Qxa4 {[%clk 0:02:18.9]} 17... h5 {[%clk 0:02:24.1]} 18.
g5 {[%clk 0:02:13.4]} 18... Ne4 {[%clk 0:02:22.3]} 19. Bxe4 {[%clk 0:01:46.7]}
19... dxe4 {[%clk 0:02:20]} 20. Ne5 {[%clk 0:01:46.8]} 20... Bd5 {[%clk
0:01:46.8]} 21. h4 {[%clk 0:01:42.7]} 21... Rd6 {[%clk 0:01:41.6]} 22. Qb4
{[%clk 0:01:35.6]} 22... Re8 {[%clk 0:01:38.7]} 23. Rc3 {[%clk 0:01:26.5]} 23...
Re6 {[%clk 0:01:33.7]} 24. Qa5 {[%clk 0:01:23.5]} 24... Rxe5 {[%clk 0:01:09.6]}
25. dxe5 {[%clk 0:01:19.9]} 25... Qxe5 {[%clk 0:01:10.4]} 26. Ra3 {[%clk
0:01:16]} 26... a6 {[%clk 0:01:09.4]} 27. Qc3 {[%clk 0:01:13.7]} 27... Qxc3
{[%clk 0:01:07.4]} 28. Rxc3 {[%clk 0:01:12.8]} 28... Re5 {[%clk 0:01:06.9]} 29.
b3 {[%clk 0:01:08.9]} 29... Rf5 {[%clk 0:01:06.5]} 30. Rc2 {[%clk 0:01:08.5]}
30... Kc7 {[%clk 0:01:06.1]} 31. Kb2 {[%clk 0:01:04.6]} 31... Kd6 {[%clk
0:01:05.3]} 32. Rd2 {[%clk 0:01:03.1]} 32... a5 {[%clk 0:00:59.4]} 33. Kc3
{[%clk 0:01:01.5]} 33... b5 {[%clk 0:00:58.1]} 34. a3 {[%clk 0:00:59.6]} 34...
Re5 {[%clk 0:00:54.1]} 35. b4 {[%clk 0:00:53.5]} 35... a4 {[%clk 0:00:50.7]} 36.
Rh3 {[%clk 0:00:44.3]} 36... Re7 {[%clk 0:00:46]} 37. Rg3 {[%clk 0:00:33.4]}
37... Kc7 {[%clk 0:00:42.3]} 38. Rd4 {[%clk 0:00:31]} 38... Kd6 {[%clk
0:00:33.5]} 39. Rd2 {[%clk 0:00:30.9]} 39... Ke5 {[%clk 0:00:33.3]} 40. Rd4
{[%clk 0:00:30]} 40... Rc7 {[%clk 0:00:32.3]} 41. Rd2 {[%clk 0:00:26.8]} 41...
Rc8 {[%clk 0:00:21.6]} 42. Rg1 {[%clk 0:00:25.9]} 42... Rc7 {[%clk 0:00:18.8]}
43. Rd4 {[%clk 0:00:24.2]} 43... Rc8 {[%clk 0:00:14.5]} 44. Rd2 {[%clk
0:00:23.6]} 44... Rc7 {[%clk 0:00:13.1]} 45. Rd4 {[%clk 0:00:23.1]} 45... Rc8
{[%clk 0:00:13]} 46. Rd2 {[%clk 0:00:22.3]} 1/2-1/2

[Event "*** Titled Tuesday Blitz"]
[Site "Chess.com"]
[Date "2020.05.19"]
[Round "10"]
[White "DanielTitichoca"]
[Black "davekoenig"]
[Result "1-0"]
[WhiteElo "2312"]
[BlackElo "2166"]
[TimeControl "180+1"]
[EndTime "13:57:08 PDT"]
[Termination "DanielTitichoca won on time"]

1. e4 {[%clk 0:03:00.9]} 1... e6 {[%clk 0:03:00.2]} 2. d3 {[%clk 0:02:38.8]}
2... d5 {[%clk 0:03:00]} 3. Nd2 {[%clk 0:02:39.7]} 3... Nf6 {[%clk 0:02:59.3]}
4. Ngf3 {[%clk 0:02:39]} 4... Nc6 {[%clk 0:02:59.5]} 5. g3 {[%clk 0:02:33.2]}
5... Be7 {[%clk 0:02:55]} 6. Bg2 {[%clk 0:02:32.9]} 6... e5 {[%clk 0:02:53.9]}
7. c3 {[%clk 0:02:31.4]} 7... O-O {[%clk 0:02:53.4]} 8. O-O {[%clk 0:02:27.7]}
8... Re8 {[%clk 0:02:53.4]} 9. a3 {[%clk 0:02:21.6]} 9... Bg4 {[%clk 0:02:43.7]}
10. h3 {[%clk 0:02:10.8]} 10... Bh5 {[%clk 0:02:43.4]} 11. Qe2 {[%clk
0:02:09.5]} 11... Bf8 {[%clk 0:02:37]} 12. b4 {[%clk 0:01:57.4]} 12... a6 {[%clk
0:02:32]} 13. Bb2 {[%clk 0:01:54.9]} 13... Qd7 {[%clk 0:02:30]} 14. c4 {[%clk
0:01:48.9]} 14... dxe4 {[%clk 0:02:27.6]} 15. Nxe4 {[%clk 0:01:43.4]} 15... Nxe4
{[%clk 0:02:24]} 16. dxe4 {[%clk 0:01:37.6]} 16... Rad8 {[%clk 0:02:16.7]} 17.
g4 {[%clk 0:01:29.6]} 17... Bg6 {[%clk 0:02:15.9]} 18. Rad1 {[%clk 0:01:27.9]}
18... Qe7 {[%clk 0:02:04]} 19. Rd5 {[%clk 0:01:22.4]} 19... f6 {[%clk
0:02:01.9]} 20. Nh4 {[%clk 0:01:10]} 20... Bf7 {[%clk 0:01:59.6]} 21. Nf5 {[%clk
0:01:08.2]} 21... Qe6 {[%clk 0:01:59.5]} 22. Rfd1 {[%clk 0:01:03.3]} 22... Qc8
{[%clk 0:01:59.3]} 23. c5 {[%clk 0:00:57.4]} 23... g6 {[%clk 0:01:41.4]} 24. Ng3
{[%clk 0:00:47.5]} 24... Bxd5 {[%clk 0:01:36.1]} 25. exd5 {[%clk 0:00:48.4]}
25... Nd4 {[%clk 0:01:33.4]} 26. Qc4 {[%clk 0:00:46]} 26... b5 {[%clk
0:01:28.5]} 27. Qc1 {[%clk 0:00:41.2]} 27... Bg7 {[%clk 0:01:01.3]} 28. Rxd4
{[%clk 0:00:22.4]} 28... exd4 {[%clk 0:01:00.8]} 29. Bxd4 {[%clk 0:00:23.3]}
29... Re7 {[%clk 0:00:43.1]} 30. Qc3 {[%clk 0:00:22.3]} 30... Kf7 {[%clk
0:00:40.8]} 31. g5 {[%clk 0:00:21.9]} 31... Rde8 {[%clk 0:00:27.3]} 32. gxf6
{[%clk 0:00:20.6]} 32... Re1+ {[%clk 0:00:27.2]} 33. Kh2 {[%clk 0:00:21.3]}
33... Bh6 {[%clk 0:00:27]} 34. d6 {[%clk 0:00:20.4]} 34... Qe6 {[%clk
0:00:19.6]} 35. dxc7 {[%clk 0:00:18.4]} 35... Rc8 {[%clk 0:00:19.3]} 36. Qf3
{[%clk 0:00:16.8]} 36... Rxc7 {[%clk 0:00:17.9]} 37. Ne4 {[%clk 0:00:17.7]}
37... Rxe4 {[%clk 0:00:13.3]} 38. Qxe4 {[%clk 0:00:18.6]} 38... Qxe4 {[%clk
0:00:13.2]} 39. Bxe4 {[%clk 0:00:19.2]} 39... Bf4+ {[%clk 0:00:10.9]} 40. Kg2
{[%clk 0:00:18.5]} 40... Rd7 {[%clk 0:00:06.9]} 41. Bc3 {[%clk 0:00:18.5]} 1-0